bitfinex/quotes_BTCUSD_20240712
["timestamp","ask_amount","ask_price","bid_price","bid_amount"]
[1720797456472,0.0003,58043.0,58042.0,0.651689]
[1720797456679,0.517158,58043.0,58042.0,0.4924]
[1720797456853,0.518058,58043.0,58042.0,0.4924]
[1720797457054,0.517058,58043.0,58042.0,0.4794]
[1720797457673,0.172486,58043.0,58042.0,0.4794]
[1720797457924,0.0002,58046.0,58042.0,0.4794]
[1720797458076,0.0002,58045.0,58043.0,0.171284]
[1720797458252,0.0002,58047.0,58046.0,0.172277]
[1720797458656,0.0002,58044.0,58042.0,0.0784]
[1720797458858,0.0002,58043.0,58042.0,0.250689]
[1720797459058,0.0001,58043.0,58042.0,0.250689]
[1720797459241,0.0001,58043.0,58042.0,0.595267]
[1720797459440,0.001,58045.0,58043.0,0.516857]
[1720797459441,0.0001,58044.0,58043.0,0.516857]
[1720797459711,0.0011,58045.0,58044.0,0.172283]
[1720797459932,0.0001,58047.0,58046.0,0.172277]
[1720797460136,0.001,58043.0,58042.0,0.0794]
[1720797460342,0.001,58043.0,58042.0,0.59971237]
[1720797460541,0.001,58043.0,58042.0,1.28886837]
[1720797460716,0.001,58043.0,58042.0,1.30286837]
[1720797461038,0.001,58043.0,58042.0,1.28886837]
[1720797461434,0.002,58043.0,58042.0,1.30286837]
[1720797461640,0.001,58043.0,58042.0,1.28886837]
[1720797461939,0.001,58043.0,58042.0,1.285423]
[1720797462340,0.001,58043.0,58042.0,1.832501]
[1720797462896,0.002,58043.0,58042.0,1.846501]
[1720797463280,0.0001,58056.0,58055.0,0.17225]
[1720797463483,0.0001,58056.0,58053.0,0.344507]
[1720797463484,0.0001,58056.0,58054.0,0.172252]
[1720797463769,0.0001,58055.0,58054.0,0.172252]
[1720797464129,0.03898208,58055.0,58054.0,0.516758]
[1720797464454,0.0389028,58055.0,58054.0,0.516759]
[1720797464627,0.03890162,58055.0,58054.0,0.516759]
[1720797464837,0.03890162,58055.0,58054.0,0.525759]
[1720797464838,0.0001,58055.0,58054.0,0.525759]
[1720797465038,0.03890162,58055.0,58054.0,0.525759]
[1720797465225,0.03880162,58055.0,58054.0,0.870265]
[1720797465666,0.001,58056.0,58054.0,0.870265]
[1720797465667,0.001,58056.0,58055.0,0.51675]
[1720797465819,0.001,58056.0,58055.0,0.86125]
[1720797466029,0.03950611,58056.0,58055.0,0.86125]
[1720797466379,0.00117322,58059.0,58054.0,0.009]
[1720797466380,0.0001,58059.0,58058.0,0.579324]
[1720797467142,0.0001,58060.0,58059.0,0.516715]
[1720797467375,0.0001,58060.0,58058.0,0.0626]
[1720797467376,0.0387364,58061.0,58060.0,0.516706]
[1720797467647,0.0388364,58061.0,58060.0,0.940877]
[1720797467836,0.00117322,58065.0,58064.0,0.172223]
[1720797468002,0.00117322,58065.0,58062.0,0.344459]
[1720797468003,0.0001,58063.0,58062.0,0.516688]
[1720797468404,0.05565106,58063.0,58060.0,0.172234]
[1720797468638,0.0001,58061.0,58060.0,0.172234]
[1720797468810,0.0001,58061.0,58058.0,0.18224]
[1720797468811,0.0001,58059.0,58058.0,0.18224]
[1720797469028,0.861292,58059.0,58058.0,0.01]
[1720797469377,0.172347,58056.0,58055.0,0.00199031]
[1720797469595,0.03929732,58056.0,58055.0,0.17424031]
[1720797469830,0.03929732,58056.0,58055.0,0.00199031]
[1720797470032,0.0001,58055.0,58054.0,0.516858]
[1720797470251,0.03929732,58055.0,58054.0,0.172352]
[1720797470457,0.03929732,58055.0,58054.0,0.516858]
[1720797472044,0.03919732,58055.0,58054.0,0.516858]
[1720797472263,0.03919732,58055.0,58054.0,1.26937]
[1720797472484,0.03919732,58055.0,58054.0,1.36227]
[1720797473146,0.03919732,58055.0,58054.0,1.34827]
[1720797473466,0.03919732,58055.0,58054.0,1.36227]
[1720797473908,0.03919732,58055.0,58054.0,1.48217]
[1720797474342,0.08511435,58068.0,58065.0,0.861102]
[1720797474343,0.00107322,58066.0,58065.0,0.861102]
[1720797474516,0.00107322,58066.0,58065.0,1.005802]
[1720797474682,0.0001,58068.0,58067.0,0.861072]
[1720797475405,0.03909748,58071.0,58065.0,0.1447]
[1720797475611,0.00107322,58075.0,58069.0,0.861042]
[1720797475612,0.03909748,58070.0,58069.0,0.861042]
[1720797475815,0.03909748,58070.0,58069.0,1.204459]
[1720797476269,0.03909748,58070.0,58069.0,1.343059]
[1720797477902,0.00107322,58080.0,58077.0,0.344367]
[1720797478076,0.03833069,58079.0,58078.0,0.516546]
[1720797478282,0.00107322,58084.0,58080.0,0.172176]
[1720797478283,0.0001,58081.0,58080.0,0.172176]
[1720797479022,0.0001,58080.0,58079.0,0.17416831]
[1720797479219,0.0001,58080.0,58079.0,0.172178]
[1720797479624,0.172279,58079.0,58078.0,0.007]
[1720797479826,0.21111783,58079.0,58078.0,0.007]
[1720797480027,0.03883883,58079.0,58078.0,0.007]
[1720797480267,0.03883883,58079.0,58078.0,0.00899031]
[1720797480268,0.03893883,58079.0,58078.0,0.00899031]
[1720797480459,0.03893883,58079.0,58078.0,0.18117231]
[1720797480619,0.03893883,58079.0,58078.0,0.179182]
[1720797481017,0.03932219,58079.0,58078.0,0.172182]
[1720797481267,0.0001,58080.0,58079.0,0.172179]
[1720797481480,0.0001,58080.0,58079.0,0.184179]
[1720797481892,0.0001,58080.0,58079.0,0.516537]
[1720797482620,0.03986222,58080.0,58079.0,0.172179]
[1720797482956,0.069684,58080.0,58079.0,0.172179]
[1720797483152,0.069684,58080.0,58079.0,0.184179]
[1720797483587,0.03995647,58080.0,58079.0,0.012]
[1720797483748,0.97969895,58080.0,58079.0,0.023]
[1720797484313,0.97922362,58080.0,58079.0,0.023]
[1720797484465,1.09765742,58080.0,58079.0,0.03148664]
[1720797485081,1.70650942,58080.0,58079.0,0.03148664]
[1720797485453,1.70650942,58080.0,58079.0,0.023]
[1720797486268,1.58650942,58080.0,58079.0,0.023]
[1720797486599,1.06212362,58080.0,58079.0,0.023]
[1720797486832,0.97922362,58080.0,58079.0,0.023]
[1720797487218,0.63487162,58080.0,58079.0,0.03148774]
[1720797487424,0.516628,58080.0,58079.0,0.03148774]
[1720797487708,0.63502539,58080.0,58079.0,0.03148774]
[1720797488698,0.11849739,58080.0,58079.0,0.03148774]
[1720797489095,1.41801753,58080.0,58079.0,0.03148774]
[1720797489298,1.41801753,58080.0,58079.0,0.023]
[1720797489724,1.53801753,58080.0,58079.0,0.023]
[1720797489958,1.49832534,58080.0,58079.0,0.023]
[1720797490210,1.53777239,58080.0,58079.0,0.023]
[1720797490442,1.88212439,58080.0,58079.0,0.023]
[1720797490868,1.88295439,58080.0,58079.0,0.023]
[1720797491514,1.78866625,58080.0,58079.0,0.022]
[1720797491770,1.44431425,58080.0,58079.0,0.022]
[1720797492141,1.32431425,58080.0,58079.0,0.022]
[1720797492893,0.29125825,58080.0,58079.0,0.022]
[1720797493092,0.97996225,58080.0,58079.0,0.022]
[1720797493295,0.97996225,58080.0,58079.0,0.03114418]
[1720797493500,1.29551543,58080.0,58079.0,0.03114418]
[1720797493702,1.29551543,58080.0,58079.0,0.022]
[1720797493831,1.41551543,58080.0,58079.0,0.022]
[1720797494237,1.90616743,58080.0,58079.0,0.022]
[1720797494468,1.56181543,58080.0,58079.0,0.022]
[1720797494669,0.98181,58080.0,58079.0,0.022]
[1720797495277,1.22421,58080.0,58079.0,0.022]
[1720797495683,2.212914,58080.0,58079.0,0.022]
[1720797496253,2.67444221,58080.0,58079.0,0.022]
[1720797496405,2.67444221,58080.0,58079.0,0.011]
[1720797496406,3.51425921,58080.0,58079.0,0.011]
[1720797496949,2.046453,58079.0,58078.0,0.1001]
[1720797497160,3.69700435,58079.0,58078.0,0.1001]
[1720797497340,3.57889375,58079.0,58078.0,0.1001]
[1720797497537,4.38572065,58079.0,58078.0,0.1001]
[1720797498080,3.35403165,58079.0,58078.0,0.1001]
[1720797498282,3.1689173,58079.0,58078.0,0.1001]
[1720797498486,2.1274219,58079.0,58078.0,0.1001]
[1720797499110,2.0324219,58079.0,58078.0,0.1001]
[1720797499334,2.03293673,58079.0,58078.0,0.1001]
[1720797499562,1.68857873,58079.0,58078.0,0.1001]
[1720797499964,2.23293673,58079.0,58078.0,0.1001]
[1720797500230,2.40317413,58079.0,58078.0,0.1001]
[1720797500403,2.50317413,58079.0,58078.0,0.1001]
[1720797500833,2.50235575,58079.0,58078.0,0.1001]
[1720797500958,3.27361375,58079.0,58078.0,0.1001]
[1720797501153,3.88341375,58079.0,58078.0,0.1001]
[1720797501449,4.22763598,58079.0,58078.0,0.1001]
[1720797501560,4.32155134,58079.0,58078.0,0.1001]
[1720797502014,4.1358178,58079.0,58078.0,0.1001]
[1720797502217,3.79159557,58079.0,58078.0,0.1001]
[1720797502629,2.46046,58070.0,58069.0,0.000913]
[1720797502839,3.34957835,58070.0,58069.0,0.000913]
[1720797503259,3.52344971,58070.0,58069.0,0.000913]
[1720797503456,3.34957835,58070.0,58069.0,0.000913]
[1720797504178,3.34957835,58070.0,58069.0,0.001913]
[1720797504378,3.51981575,58070.0,58069.0,0.000913]
[1720797504729,3.51981575,58070.0,58069.0,0.001913]
[1720797505139,3.51971575,58070.0,58069.0,0.001913]
[1720797505674,3.51971575,58070.0,58055.0,0.00199031]
[1720797505675,1.325729,58056.0,58055.0,0.00199031]
[1720797505881,0.516813,58048.0,58047.0,0.0601]
[1720797506122,1.09916235,58048.0,58047.0,0.0601]
[1720797506325,1.09916235,58048.0,58047.0,0.00848913]
[1720797506532,1.09916235,58048.0,58041.0,0.009097]
[1720797506533,0.516749,58044.0,58043.0,0.5265]
[1720797506736,1.44368835,58044.0,58043.0,0.0601]
[1720797506962,0.636858,58043.0,58042.0,0.0815]
[1720797507163,0.7112485,58043.0,58041.0,0.009097]
[1720797507366,1.326023,58042.0,58041.0,0.009097]
[1720797507602,1.60506991,58042.0,58041.0,0.009097]
[1720797507783,1.77531393,58042.0,58041.0,0.009097]
[1720797508010,1.64648142,58042.0,58041.0,0.009097]
[1720797509443,1.99105942,58042.0,58041.0,0.020097]
[1720797509856,1.8418384,58042.0,58041.0,0.011097]
[1720797510067,1.99173339,58042.0,58041.0,0.011097]
[1720797510270,1.99273339,58042.0,58041.0,0.022097]
[1720797510697,1.93643673,58042.0,58041.0,0.022097]
[1720797510907,1.99165065,58042.0,58041.0,0.022097]
[1720797511087,2.81772865,58042.0,58041.0,0.022097]
[1720797511328,3.06312865,58042.0,58041.0,0.022097]
[1720797511740,3.21737454,58042.0,58041.0,0.022097]
[1720797512150,3.21727454,58042.0,58041.0,0.022097]
[1720797512357,3.06302865,58042.0,58041.0,0.022097]
[1720797512560,2.02809065,58042.0,58041.0,0.011097]
[1720797512759,1.48421265,58042.0,58041.0,0.011097]
[1720797512967,1.458524,58042.0,58041.0,0.013097]
[1720797513169,1.73894527,58042.0,58041.0,0.013097]
[1720797513371,1.71222337,58042.0,58041.0,0.011097]
[1720797513579,1.73794527,58042.0,58041.0,0.011097]
[1720797513776,1.83794527,58042.0,58041.0,0.012097]
[1720797513982,1.83859397,58042.0,58041.0,0.012097]
[1720797514109,1.73859397,58042.0,58041.0,0.012097]
[1720797514325,1.71288824,58042.0,58041.0,0.012097]
[1720797515371,2.08042711,58042.0,58041.0,0.012197]
[1720797515576,2.15746624,58042.0,58041.0,0.012197]
[1720797515737,2.08042711,58042.0,58041.0,0.012197]
[1720797516448,1.63584911,58042.0,58041.0,0.012197]
[1720797516655,1.47542784,58042.0,58041.0,0.012197]
[1720797517228,1.35548126,58042.0,58041.0,0.012197]
[1720797517811,1.35566146,58042.0,58041.0,0.012197]
[1720797519554,1.47566146,58042.0,58041.0,0.012197]
[1720797519725,1.47526928,58042.0,58041.0,0.012197]
[1720797520056,1.63386733,58042.0,58041.0,0.012197]
[1720797520644,1.63386417,58042.0,58041.0,0.012197]
[1720797520861,1.51386417,58042.0,58041.0,0.012197]
[1720797521062,1.35526612,58042.0,58041.0,0.012197]
[1720797521265,1.35526612,58042.0,58041.0,0.151797]
[1720797521266,0.66611012,58042.0,58041.0,0.151797]
[1720797521437,1.01068812,58042.0,58041.0,0.151797]
[1720797521658,1.01068812,58042.0,58041.0,0.012197]
[1720797521659,1.47526612,58042.0,58041.0,0.012197]
[1720797521876,1.62279183,58042.0,58041.0,0.012197]
[1720797522075,1.62279183,58042.0,58041.0,0.010197]
[1720797522697,1.96736983,58042.0,58041.0,0.010197]
[1720797523128,1.96736983,58042.0,58041.0,0.012197]
[1720797523501,1.96736983,58042.0,58041.0,0.010197]
[1720797523904,1.96872962,58042.0,58041.0,0.012197]
[1720797524767,1.50415162,58042.0,58041.0,0.012197]
[1720797524968,1.47662591,58042.0,58041.0,0.012197]
[1720797525601,1.82120391,58042.0,58041.0,0.012197]
[1720797527163,1.670401,58042.0,58041.0,0.012197]
[1720797527364,1.82196846,58042.0,58041.0,0.012197]
[1720797527565,1.99220586,58042.0,58041.0,0.012197]
[1720797527764,1.99162268,58042.0,58041.0,0.012197]
[1720797530480,1.9352232,58042.0,58041.0,0.012197]
[1720797530714,1.99070355,58042.0,58041.0,0.012197]
[1720797531477,1.35588815,58042.0,58041.0,0.012197]
[1720797532748,1.47588815,58042.0,58041.0,0.012197]
[1720797533312,1.35588815,58042.0,58041.0,0.012197]
[1720797533858,1.35666474,58042.0,58041.0,0.012197]
[1720797534257,1.5537788,58042.0,58041.0,0.012197]
[1720797534582,1.7240162,58042.0,58041.0,0.012197]
[1720797534776,1.64690214,58042.0,58041.0,0.012197]
[1720797535384,1.7240162,58042.0,58041.0,0.012197]
[1720797535964,1.6040162,58042.0,58041.0,0.012197]
[1720797536758,1.52728101,58042.0,58041.0,0.012197]
[1720797536940,1.35704361,58042.0,58041.0,0.012197]
[1720797537155,0.862075,58042.0,58041.0,0.012197]
[1720797537352,1.01246761,58042.0,58041.0,0.012197]
[1720797537554,0.862075,58042.0,58041.0,0.012197]
[1720797537729,1.06440852,58042.0,58041.0,0.012197]
[1720797537910,1.06440852,58042.0,58041.0,0.0207512]
[1720797538330,1.01294099,58042.0,58041.0,0.012197]
[1720797538680,1.30317839,58042.0,58041.0,0.012197]
[1720797538954,1.38037946,58042.0,58041.0,0.012197]
[1720797539388,1.38039852,58042.0,58041.0,0.012197]
[1720797539812,1.30317839,58042.0,58041.0,0.012197]
[1720797540032,1.18317839,58042.0,58041.0,0.012197]
[1720797540528,1.0323124,58042.0,58041.0,0.012197]
[1720797540769,1.0894853,58042.0,58041.0,0.012197]
[1720797540954,1.01225735,58042.0,58041.0,0.02074957]
[1720797541142,1.01225735,58042.0,58041.0,0.012197]
[1720797541143,1.0894853,58042.0,58041.0,0.012197]
[1720797541298,0.71915513,58042.0,58041.0,0.012197]
[1720797541502,0.66767935,58042.0,58041.0,0.02074957]
[1720797541701,0.66767935,58042.0,58041.0,0.08444957]
[1720797541702,0.15101235,58042.0,58041.0,0.08444957]
[1720797541911,0.32330135,58042.0,58041.0,0.08444957]
[1720797542322,0.15101235,58042.0,58041.0,0.08444957]
[1720797542511,0.66787935,58042.0,58041.0,0.08444957]
[1720797542941,0.32330135,58042.0,58041.0,0.08444957]
[1720797543327,0.37480036,58042.0,58041.0,0.08444957]
[1720797543530,1.1894024,58042.0,58041.0,0.08444957]
[1720797543744,0.8448244,58042.0,58041.0,0.08444957]
[1720797544366,0.87057391,58042.0,58041.0,0.08444957]
[1720797545504,0.15101235,58042.0,58041.0,0.25674157]
[1720797545707,0.15101235,58042.0,58041.0,0.33974157]
[1720797545909,0.20256508,58042.0,58041.0,1.37349357]
[1720797546191,0.20256508,58042.0,58041.0,1.02890957]
[1720797546325,0.09397447,58042.0,58041.0,0.68232557]
[1720797546530,0.8186649,58042.0,58041.0,0.16544957]
[1720797546776,0.00183,58042.0,58041.0,0.164897]
[1720797547175,0.79556404,58042.0,58041.0,0.1724465]
[1720797547380,1.47580297,58042.0,58041.0,0.0257465]
[1720797547584,1.47081637,58042.0,58041.0,0.0397465]
[1720797547710,1.47081637,58042.0,58041.0,0.023197]
[1720797547711,1.46981637,58042.0,58041.0,0.023197]
[1720797547911,1.62451686,58042.0,58041.0,0.023197]
[1720797548322,1.46981637,58042.0,58041.0,0.023197]
[1720797548667,1.46980025,58042.0,58041.0,0.023197]
[1720797549342,1.47080025,58042.0,58041.0,0.036197]
[1720797549754,1.59080025,58042.0,58041.0,0.036197]
[1720797549962,2.01037825,58042.0,58041.0,0.036197]
[1720797550312,2.35577825,58042.0,58041.0,0.036197]
[1720797550523,2.35477825,58042.0,58041.0,0.022197]
[1720797550856,2.35377825,58042.0,58041.0,0.010197]
[1720797551017,2.35377825,58042.0,58041.0,0.011197]
[1720797552102,2.25377825,58042.0,58041.0,0.011197]
[1720797552358,2.00837825,58042.0,58041.0,0.011197]
[1720797552888,1.7404444,58042.0,58041.0,0.011197]
[1720797553137,1.35576051,58042.0,58041.0,0.011197]
[1720797553337,1.36637165,58042.0,58041.0,0.011197]
[1720797553703,1.02179365,58042.0,58041.0,0.011197]
[1720797554116,1.36637165,58042.0,58041.0,0.011197]
[1720797554244,1.48637165,58042.0,58041.0,0.011197]
[1720797554445,1.02179365,58042.0,58041.0,0.011197]
[1720797554849,1.48637165,58042.0,58041.0,0.011197]
[1720797556827,1.48561493,58042.0,58041.0,0.011197]
[1720797558489,1.97709293,58042.0,58041.0,0.011197]
[1720797558696,2.52249293,58042.0,58041.0,0.011197]
[1720797558922,3.21880833,58042.0,58041.0,0.011197]
[1720797559094,3.30828925,58042.0,58041.0,0.011197]
[1720797559842,3.30883981,58042.0,58041.0,0.009197]
[1720797559978,3.41383981,58042.0,58041.0,0.009197]
[1720797560182,4.5728212,58042.0,58041.0,0.010197]
[1720797560385,4.5728212,58042.0,58038.0,0.009097]
[1720797560386,2.252177,58039.0,58038.0,0.009097]
[1720797560631,3.75271335,58039.0,58038.0,0.009097]
[1720797560837,3.75261335,58039.0,58038.0,0.009097]
[1720797561413,3.66482935,58039.0,58038.0,0.009097]
[1720797561616,3.75531027,58039.0,58038.0,0.009097]
[1720797561813,3.76650367,58039.0,58038.0,0.009097]
[1720797562307,3.94652806,58039.0,58038.0,0.009097]
[1720797562488,3.94652806,58039.0,58038.0,1e-08]
[1720797562694,3.63151106,58039.0,58038.0,1e-08]
[1720797562898,3.48480971,58039.0,58038.0,1e-08]
[1720797563068,3.63367366,58039.0,58038.0,1e-08]
[1720797564276,3.63367366,58039.0,58026.0,0.009097]
[1720797564277,1.266213,58028.0,58027.0,0.00087301]
[1720797564614,1.18479256,58028.0,58027.0,0.00087301]
[1720797564764,0.32115549,58028.0,58027.0,0.00087301]
[1720797564978,1.07037749,58028.0,58027.0,0.00087301]
[1720797565170,1.69628975,58028.0,58027.0,0.00087301]
[1720797565589,1.52197624,58028.0,58027.0,0.00087301]
[1720797565936,1.86763724,58028.0,58027.0,0.01187301]
[1720797566339,1.77226602,58028.0,58027.0,0.01187301]
[1720797566669,1.71891175,58028.0,58027.0,0.01187301]
[1720797566869,1.77241354,58028.0,58027.0,0.01187301]
[1720797567543,1.77341354,58028.0,58027.0,0.02487301]
[1720797568611,1.77311779,58028.0,58027.0,0.02487301]
[1720797568819,1.66608004,58028.0,58027.0,0.02487301]
[1720797569552,1.612774,58028.0,58027.0,0.02487301]
[1720797569701,1.66648246,58028.0,58027.0,0.02487301]
[1720797570678,1.66638246,58028.0,58027.0,0.02487301]
[1720797570874,1.83661986,58028.0,58027.0,0.02487301]
[1720797571305,1.43205886,58028.0,58027.0,0.02487301]
[1720797572344,1.60628876,58028.0,58027.0,0.02487301]
[1720797572526,1.09139036,58028.0,58027.0,0.08837301]
[1720797572740,1.49595136,58028.0,58027.0,0.02487301]
[1720797572937,1.44223807,58028.0,58027.0,0.02487301]
[1720797573218,1.58798556,58028.0,58027.0,0.02487301]
[1720797573458,1.59855169,58028.0,58027.0,0.02487301]
[1720797573714,1.68097991,58028.0,58027.0,0.02487301]
[1720797575052,1.68097991,58028.0,58027.0,0.02497301]
[1720797575592,1.50675484,58028.0,58027.0,0.02497301]
[1720797576192,1.50257498,58028.0,58027.0,0.02497301]
[1720797576391,1.67673651,58028.0,58027.0,0.02497301]
[1720797576618,1.67673651,58028.0,58027.0,0.00097301]
[1720797576619,1.53316424,58028.0,58027.0,0.00097301]
[1720797576830,1.67415631,58028.0,58027.0,0.00097301]
[1720797577025,1.67415631,58028.0,58027.0,0.00897301]
[1720797578385,1.84466042,58028.0,58027.0,0.00897301]
[1720797578571,1.84503196,58028.0,58027.0,0.00897301]
[1720797579430,1.84443981,58028.0,58027.0,0.00497301]
[1720797579893,1.84743981,58028.0,58027.0,0.00097301]
[1720797580096,3.52577581,58028.0,58027.0,0.00097301]
[1720797580405,2.62093981,58028.0,58027.0,0.00097301]
[1720797581204,2.53851159,58028.0,58027.0,0.00097301]
[1720797582178,2.21241159,58028.0,58027.0,0.00097301]
[1720797582655,2.21273586,58028.0,58027.0,0.00097301]
[1720797582894,2.11273586,58028.0,58027.0,0.00097301]
[1720797583058,1.70743586,58028.0,58027.0,0.00097301]
[1720797583279,1.36277486,58028.0,58027.0,0.00097301]
[1720797583488,1.36277486,58028.0,58027.0,0.06477301]
[1720797585341,1.01811386,58028.0,58027.0,0.06477301]
[1720797585874,0.87701813,58028.0,58027.0,0.06477301]
[1720797586085,1.01861838,58028.0,58027.0,0.06477301]
[1720797586453,1.18833464,58028.0,58027.0,0.06477301]
[1720797587393,1.24823464,58028.0,58027.0,0.06477301]
[1720797587816,1.36233883,58028.0,58027.0,0.06477301]
[1720797588015,1.18833464,58028.0,58027.0,0.06477301]
[1720797588360,1.36237652,58028.0,58027.0,0.06477301]
[1720797589241,1.19265999,58028.0,58027.0,0.06477301]
[1720797589574,1.19279065,58028.0,58027.0,0.06477301]
[1720797589870,0.32077252,58028.0,58027.0,0.14197301]
[1720797590003,0.14667303,58028.0,58027.0,0.15055835]
[1720797590432,0.14667303,58028.0,58027.0,0.32289135]
[1720797590628,0.14467303,58028.0,58027.0,0.32289135]
[1720797591101,0.14467303,58028.0,58027.0,1.01622535]
[1720797591283,0.27369507,58028.0,58027.0,1.01622535]
[1720797591622,0.27069507,58028.0,58027.0,1.01622535]
[1720797591823,0.14167303,58028.0,58027.0,1.01122535]
[1720797592471,0.27069507,58028.0,58027.0,1.01122535]
[1720797592670,0.00107322,58032.0,58031.0,0.0832]
[1720797592871,0.14174112,58032.0,58031.0,0.0832]
[1720797593185,0.3129859,58032.0,58031.0,0.09157943]
[1720797593338,0.86269202,58032.0,58031.0,0.09057943]
[1720797594006,1.39709208,58032.0,58031.0,0.00857943]
[1720797594211,1.45799208,58032.0,58031.0,0.02257943]
[1720797594409,1.45799208,58032.0,58031.0,0.014]
[1720797594584,1.80262908,58032.0,58031.0,0.014]
[1720797594782,1.88052908,58032.0,58031.0,0.014]
[1720797595215,1.94142908,58032.0,58031.0,0.014]
[1720797595873,1.266213,58028.0,58027.0,0.0001]
[1720797596084,1.40724973,58028.0,58027.0,0.0001]
[1720797596321,1.70063779,58028.0,58027.0,0.0001]
[1720797596522,1.75191605,58028.0,58027.0,0.0001]
[1720797597123,1.75291605,58028.0,58027.0,0.0131]
[1720797597413,1.92415345,58028.0,58027.0,0.0231]
[1720797597655,1.92215345,58028.0,58027.0,0.0001]
[1720797597832,2.12165312,58028.0,58027.0,0.0001]
[1720797598031,2.81101412,58028.0,58027.0,0.0001]
[1720797598329,2.46652404,58028.0,58027.0,0.0001]
[1720797599008,2.47052404,58028.0,58027.0,0.0001]
[1720797599214,2.99368504,58028.0,58027.0,0.0001]
[1720797599415,3.24415578,58028.0,58027.0,0.0001]
[1720797599734,3.25115578,58028.0,58027.0,0.0011]
[1720797599954,3.00381389,58028.0,58027.0,0.0021]
[1720797601948,3.72034189,58028.0,58027.0,0.0021]
[1720797602118,0.4599,58022.0,58021.0,0.000913]
[1720797602318,0.4599,58022.0,58005.0,0.0618]
[1720797602319,0.613772,58014.0,58005.0,0.0618]
[1720797602500,0.613772,58014.0,58013.0,0.009108]
[1720797602501,1.78884549,58014.0,58013.0,0.009108]
[1720797602714,2.5553476,58014.0,58013.0,0.009108]
[1720797603131,2.80958638,58014.0,58013.0,0.009108]
[1720797603336,2.47833349,58014.0,58013.0,0.009108]
[1720797603746,2.68133349,58014.0,58013.0,0.009108]
[1720797604158,2.85874082,58014.0,58013.0,0.009108]
[1720797604927,2.94004082,58014.0,58013.0,0.00662747]
[1720797605109,3.17187822,58014.0,58013.0,0.00662747]
[1720797605529,2.795982,58014.0,58013.0,0.00662747]
[1720797605824,3.0501441,58014.0,58013.0,0.00662747]
[1720797606029,3.0531441,58014.0,58013.0,0.00662747]
[1720797606241,2.798982,58014.0,58013.0,0.00662747]
[1720797606708,2.998982,58014.0,58013.0,0.00662747]
[1720797606920,2.998982,58014.0,58001.0,0.002]
[1720797606921,2.480082,58002.0,58001.0,1e-06]
[1720797607123,0.2022526,58002.0,57991.0,0.002]
[1720797607300,0.25412333,58008.0,57991.0,0.002]
[1720797607301,0.12900257,57993.0,57992.0,0.0003]
[1720797607497,0.517312,57992.0,57991.0,0.0023]
[1720797607770,1.00609911,57992.0,57991.0,0.15434]
[1720797607981,1.00609911,57992.0,57991.0,0.731661]
[1720797607982,0.14391211,57992.0,57991.0,0.731661]
[1720797608182,0.05273013,57992.0,57991.0,1.4945891]
[1720797608388,0.12899735,58001.0,57991.0,1.4945891]
[1720797608389,0.141971,58002.0,58001.0,0.0003]
[1720797608592,0.141971,58002.0,58001.0,0.1436]
[1720797608593,0.43246239,58002.0,58001.0,0.1436]
[1720797608793,1.14789767,58002.0,58001.0,0.1436]
[1720797609010,1.01892667,58002.0,58001.0,0.1436]
[1720797609214,1.13371644,58002.0,58001.0,0.1436]
[1720797609414,0.15678967,58002.0,58001.0,0.1436]
[1720797609633,0.23415175,58002.0,58001.0,0.660831]
[1720797609799,0.06562302,58002.0,58001.0,0.31601]
[1720797610004,0.05272302,58002.0,58001.0,0.31601]
[1720797610210,0.1042972,58003.0,58001.0,0.17271]
[1720797610383,0.39853802,58002.0,58001.0,0.0003]
[1720797610580,1.08601966,58002.0,58001.0,0.0003]
[1720797610809,1.08601966,58002.0,58001.0,0.1442]
[1720797610810,1.11180924,58002.0,58001.0,0.1442]
[1720797611013,1.00865758,58002.0,58001.0,0.1442]
[1720797611273,1.13760534,58002.0,58001.0,0.1442]
[1720797611485,0.863037,58002.0,58001.0,0.1442]
[1720797611696,1.13986428,58002.0,58001.0,0.1442]
[1720797611870,1.14086428,58002.0,58001.0,0.1442]
[1720797612699,1.50521335,58002.0,58001.0,0.1442]
[1720797612903,1.35664542,58002.0,58001.0,0.1442]
[1720797613127,1.01083042,58002.0,58001.0,0.1442]
[1720797613301,1.01083042,58002.0,58001.0,0.1462]
[1720797613621,1.35664542,58002.0,58001.0,0.1462]
[1720797613820,1.35564542,58002.0,58001.0,0.1442]
[1720797614024,1.35554542,58002.0,58001.0,0.1442]
[1720797614163,1.35654542,58002.0,58001.0,0.1462]
[1720797614359,1.01173042,58002.0,58001.0,0.1462]
[1720797614562,1.01073042,58002.0,58001.0,0.1462]
[1720797614763,1.01173042,58002.0,58001.0,0.1462]
[1720797614970,1.35654542,58002.0,58001.0,0.1462]
[1720797615164,0.863837,58002.0,58001.0,0.1462]
[1720797615371,1.01124381,58002.0,58001.0,0.1462]
[1720797616298,1.01124381,58002.0,58001.0,0.1465]
[1720797616299,0.14940681,58002.0,58001.0,0.1465]
[1720797616495,0.14940681,58002.0,58001.0,0.15466039]
[1720797616699,0.25250819,58002.0,58001.0,0.32707039]
[1720797616901,0.22673037,58002.0,58001.0,0.32707039]
[1720797617097,0.22473037,58002.0,58001.0,0.66989139]
[1720797617325,0.517189,58006.0,58005.0,0.1359]
[1720797617436,0.665273,58006.0,58005.0,0.1339]
[1720797617637,0.665273,58006.0,58005.0,0.14205682]
[1720797618059,0.27695708,58006.0,58005.0,0.31445482]
[1720797618260,0.27838115,58006.0,58005.0,0.14205682]
[1720797618487,0.14951426,58006.0,58005.0,0.31445482]
[1720797618686,0.15051426,58006.0,58005.0,0.65925182]
[1720797618861,0.05660401,58006.0,58005.0,1.46884582]
[1720797619067,0.05660401,58006.0,58005.0,1.34884582]
[1720797619499,0.05660401,58006.0,58005.0,1.34784582]
[1720797619956,0.05660401,58006.0,58005.0,1.00304882]
[1720797620178,0.05760401,58006.0,58005.0,1.01004882]
[1720797620609,0.05660401,58006.0,58005.0,1.01004882]
[1720797621006,0.05760401,58006.0,58005.0,0.67025182]
[1720797621217,0.37506961,58006.0,58005.0,0.15305682]
[1720797621392,0.74712609,58006.0,58005.0,0.15305682]
[1720797621593,1.11621178,58006.0,58005.0,0.1449]
[1720797621814,1.14198798,58006.0,58005.0,0.1449]
[1720797622058,1.14198798,58006.0,58005.0,0.012]
[1720797622269,1.013107,58006.0,58005.0,0.012]